fUSD/lending_fUSD_20240114
["ID","MTS","AMOUNT","RATE_DAILY","PERIOD"]
[311609023,1705264348503,-421.18629095,0.0003315,2]
[311609024,1705264348536,-838.31370905,0.0003315,2]
[311609025,1705264348546,-648.66,0.0003315,2]
[311609026,1705264348704,-500.0,0.0003315,2]
[311609027,1705264348714,-3155.7,0.0003315,2]
[311609028,1705264348723,-500.0,0.0003315,2]
[311609029,1705264348733,-541.14,0.0003315,2]
[311609030,1705264348742,-500.0,0.0003315,2]
[311609031,1705264348752,-1899.34,0.0003315,2]
[311609032,1705264348761,-1672.54,0.0003315,2]
[311609033,1705264348772,-612.36,0.0003315,2]
[311609034,1705264348782,-500.0,0.0003315,2]
[311609035,1705264348794,-1740.09,0.0003315,2]
[311609036,1705264348804,-500.0,0.0003315,2]
[311609037,1705264348814,-920.75,0.0003315,2]
[311609038,1705264348824,-3991.14,0.0003315,2]
[311609039,1705264348834,-1101.91,0.0003315,2]
[311609040,1705264348844,-10488.2,0.0003315,2]
[311609041,1705264348852,-1103.01,0.0003315,2]
[311609042,1705264348862,-1042.12,0.0003315,2]
[311609043,1705264348871,-956.24,0.0003315,2]
[311609044,1705264348879,-896.85,0.0003315,2]
[311609045,1705264348889,-3953.12,0.0003315,2]
[311609046,1705264348898,-500.0,0.0003315,2]
[311609047,1705264348907,-500.0,0.0003315,2]
[311609048,1705264348918,-500.0,0.0003315,2]
[311609049,1705264348928,-1533.7,0.0003315,2]
[311609050,1705264348937,-1033.26,0.0003315,2]
[311609051,1705264348947,-2574.62,0.0003315,2]
[311609052,1705264348957,-882.31,0.0003315,2]
[311609053,1705264348966,-2093.22,0.0003315,2]
[311609054,1705264348976,-1449.1,0.0003315,2]
[311609055,1705264348985,-664.21,0.0003315,2]
[311609056,1705264348994,-526.99,0.0003315,2]
[311609057,1705264349004,-808.11,0.0003315,2]
[311609058,1705264349014,-2286.6,0.0003315,2]
[311609059,1705264349023,-1602.23,0.0003315,2]
[311609060,1705264349033,-500.0,0.0003315,2]
[311609061,1705264349043,-531.09,0.0003315,2]
[311609062,1705264349054,-732.92,0.0003315,2]
[311609063,1705264349063,-567.37,0.0003315,2]
[311609064,1705264349076,-2009.84,0.0003315,2]
[311609065,1705264349086,-500.0,0.0003315,2]
[311609066,1705264349095,-918.48,0.0003315,2]
[311609067,1705264349104,-1108.45,0.0003315,2]
[311609068,1705264349114,-1201.65,0.0003315,2]
[311609069,1705264349123,-4796.3,0.0003315,2]
[311609070,1705264349133,-2156.48,0.0003315,2]
[311609071,1705264349142,-512.33,0.0003315,2]
[311609072,1705264349151,-500.0,0.0003315,2]
[311609073,1705264349162,-596.78,0.0003315,2]
[311609074,1705264349172,-549.32,0.0003315,2]
[311609075,1705264349182,-2657.18,0.0003315,2]
[311609076,1705264349192,-723.46,0.0003315,2]
[311609077,1705264349201,-539.01,0.0003315,2]
[311609078,1705264349211,-1641.51,0.0003315,2]
[311609079,1705264349220,-2203.79,0.0003315,2]
[311609080,1705264349230,-500.0,0.0003315,2]
[311609081,1705264349239,-2139.26,0.0003315,2]
[311609082,1705264349249,-1057.67,0.0003315,2]
[311609083,1705264349259,-1109.41,0.0003315,2]
[311609084,1705264349269,-500.0,0.0003315,2]
[311609085,1705264349279,-3320.2,0.0003315,2]
[311609086,1705264349288,-210.0,0.0003326,2]
[311609087,1705264349298,-294.0,0.0003326,2]
[311609088,1705264349307,-1000.0,0.000333,2]
[311609089,1705264349318,-1000.0,0.000333,2]
[311609090,1705264349328,-450.0,0.00033327,3]
[311609091,1705264349338,-150.0,0.00033329,2]
[311609092,1705264349348,-150.0,0.00033329,2]
[311609093,1705264349359,-784.67,0.00033329,2]
[311609094,1705264349369,-150.0,0.00033329,2]
[311609095,1705264349380,-150.0,0.00033329,2]
[311609096,1705264349390,-150.0,0.00033329,2]
[311609097,1705264349399,-300.0,0.00033329,2]
[311609098,1705264349409,-150.0,0.00033329,2]
[311609099,1705264349421,-302.78,0.00033341,2]
[311609100,1705264349431,-500.0,0.00033421,3]
[311609101,1705264349442,-500.0,0.00033424,2]
[311609102,1705264349453,-500.0,0.00033424,2]
[311609103,1705264349463,-500.0,0.00033424,2]
[311609104,1705264349473,-500.0,0.00033424,2]
[311609105,1705264349483,-500.0,0.00033424,2]
[311609106,1705264349493,-500.0,0.00033424,2]
[311609107,1705264349503,-500.0,0.00033424,2]
[311609108,1705264349513,-500.0,0.00033424,2]
[311609109,1705264349523,-522.7,0.00033424,2]
[311609110,1705264349534,-500.0,0.00033424,2]
[311609111,1705264349544,-500.0,0.00033424,2]
[311609112,1705264349556,-543.8,0.00033424,2]
[311609113,1705264349566,-500.0,0.00033424,2]
[311609114,1705264349576,-518.27,0.00033424,2]
[311609115,1705264349586,-500.0,0.00033424,2]
[311609116,1705264349596,-500.0,0.00033424,2]
[311609117,1705264349606,-512.56,0.00033424,2]
[311609118,1705264349616,-528.06,0.00033424,2]
[311609119,1705264349625,-500.0,0.00033424,2]
[311609120,1705264349637,-538.04,0.00033424,2]
[311609121,1705264349665,-500.0,0.00033424,2]
[311609122,1705264349683,-500.0,0.00033424,2]
[311609123,1705264349693,-829.92,0.00033424,2]
[311609124,1705264349703,-515.57122659,0.00033424,2]
[311609125,1705264349713,-500.0,0.00033424,2]
[311609126,1705264349725,-831.82,0.00033424,2]
[311609127,1705264349735,-500.0,0.00033424,2]
[311609128,1705264349746,-753.34,0.00033424,2]
[311609129,1705264349756,-500.0,0.00033424,2]
[311609130,1705264349773,-716.55,0.00033424,2]
[311609131,1705264349787,-500.0,0.00033424,2]
[311609132,1705264349797,-380.91280022,0.00033424,2]
[311609133,1705264349807,-500.0,0.00033424,2]
[311609134,1705264349818,-549.71,0.00033424,2]
[311609135,1705264349828,-500.0,0.00033424,2]
[311609136,1705264349838,-534.55,0.00033424,2]
[311609137,1705264349848,-500.0,0.00033424,2]
[311609138,1705264349859,-500.0,0.00033424,2]
[311609139,1705264349869,-511.27,0.00033424,2]
[311609140,1705264349880,-554.03,0.00033424,2]
[311609141,1705264349890,-500.0,0.00033424,2]
[311609142,1705264349902,-500.0,0.00033424,2]
[311609143,1705264349915,-662.74,0.00033424,2]
[311609144,1705264349927,-590.75,0.00033424,2]
[311609145,1705264349938,-500.0,0.00033424,2]
[311609146,1705264349948,-500.0,0.00033424,2]
[311609147,1705264349960,-500.0,0.00033424,2]
[311609148,1705264349971,-852.63,0.00033424,2]
[311609149,1705264349981,-500.0,0.00033424,2]
[311609150,1705264349991,-500.0,0.00033424,2]
[311609151,1705264350001,-500.0,0.00033424,2]
[311609152,1705264350012,-556.75,0.00033424,2]
[311609153,1705264350022,-500.0,0.00033424,2]
[311609154,1705264350032,-500.0,0.00033424,2]
[311609155,1705264350043,-500.0,0.00033424,2]
[311609156,1705264350054,-584.84,0.00033424,2]
[311609157,1705264350064,-500.0,0.00033424,2]
[311609158,1705264350075,-501.85577821,0.00033424,2]
[311609159,1705264350085,-955.59,0.00033424,2]
[311609160,1705264350095,-500.0,0.00033424,2]
[311609161,1705264350106,-500.0,0.00033424,2]
[311609162,1705264350116,-904.67,0.00033424,2]
[311609163,1705264350127,-500.0,0.00033424,2]
[311609164,1705264350137,-500.0,0.00033424,2]
[311609165,1705264350148,-500.0,0.00033424,2]
[311609166,1705264350158,-500.0,0.00033424,2]
[311609167,1705264350170,-508.74,0.00033424,2]
[311609168,1705264350185,-630.68499017,0.00033424,2]
[311609169,1705264350195,-501.92,0.00033424,2]
[311609170,1705264350205,-265.04384671,0.00033424,2]
[311609171,1705264350216,-502.98,0.00033424,2]
[311609172,1705264350228,-500.0,0.00033424,2]
[311609173,1705264350238,-549.05,0.00033424,2]
[311609174,1705264350249,-768.43,0.00033424,2]
[311609175,1705264350260,-500.0,0.00033424,2]
[311609176,1705264350271,-733.75,0.00033424,2]
[311609177,1705264350281,-500.0,0.00033424,2]
[311609178,1705264350292,-1482.34,0.00033424,2]
[311609179,1705264350303,-987.24,0.00033424,2]
[311609180,1705264350313,-500.0,0.00033424,2]
[311609181,1705264350324,-500.0,0.00033424,2]
[311609182,1705264350335,-500.0,0.00033424,2]
[311609183,1705264350346,-500.0,0.00033424,2]
[311609184,1705264350357,-500.0,0.00033424,2]
[311609185,1705264350368,-522.06,0.00033424,2]
[311609186,1705264350379,-500.0,0.00033424,2]
[311609187,1705264350390,-611.59073765,0.00033424,2]
[311609188,1705264350401,-500.0,0.00033424,2]
[311609189,1705264350413,-304.76083693,0.00033424,2]
[311609190,1705264350424,-902.15,0.00033424,2]
[311609191,1705264350435,-500.0,0.00033424,2]
[311609192,1705264350446,-416.11952075,0.00033424,2]
[311609193,1705264350457,-633.15,0.00033424,2]
[311609194,1705264350469,-500.0,0.00033424,2]
[311609195,1705264350480,-733.43,0.00033424,2]
[311609196,1705264350491,-681.94,0.00033424,2]
[311609197,1705264350502,-500.0,0.00033424,2]
[311609198,1705264350514,-500.0,0.00033424,2]
[311609199,1705264350525,-500.0,0.00033424,2]
[311609200,1705264350536,-861.38,0.00033424,2]
[311609201,1705264350548,-607.46,0.00033424,2]
[311609202,1705264350560,-871.23,0.00033424,2]
[311609203,1705264350571,-540.76,0.00033424,2]
[311609204,1705264350583,-731.62,0.00033424,2]
[311609205,1705264350594,-500.0,0.00033424,2]
[311609206,1705264350607,-500.0,0.00033424,2]
[311609207,1705264350634,-551.95996706,0.00033424,2]
[311609208,1705264350654,-500.0,0.00033424,2]
[311609209,1705264350673,-500.0,0.00033424,2]
[311609210,1705264350692,-573.03,0.00033424,2]
[311609211,1705264350709,-500.0,0.00033424,2]
[311609212,1705264350728,-541.18,0.00033424,2]
[311609213,1705264350749,-1043.04,0.00033424,2]
[311609214,1705264350764,-500.0,0.00033424,2]
[311609215,1705264350783,-524.14,0.00033424,2]
[311609216,1705264350800,-971.45,0.00033424,2]
[311609217,1705264350819,-720.76,0.00033424,2]
[311609218,1705264350840,-1331.65,0.00033424,2]
[311609219,1705264350853,-500.0,0.00033424,2]
[311609220,1705264350869,-500.0,0.00033424,2]
[311609221,1705264350886,-887.35,0.00033424,2]
[311609222,1705264350898,-1632.65,0.00033424,2]
[311609223,1705264350914,-1287.99,0.00033424,2]
[311609224,1705264350930,-500.0,0.00033424,2]
[311609225,1705264350951,-500.0,0.00033424,2]
[311609226,1705264350968,-500.0,0.00033424,2]
[311609227,1705264350985,-500.0,0.00033424,2]
[311609228,1705264351001,-500.0,0.00033424,2]
[311609229,1705264351017,-568.32,0.00033424,2]
[311609230,1705264351032,-1075.72,0.00033424,2]
[311609231,1705264351048,-611.32,0.00033424,2]
[311609232,1705264351064,-966.98,0.00033424,2]
[311609233,1705264351079,-1190.52,0.00033424,2]
[311609234,1705264351094,-1150.22,0.00033424,2]
[311609235,1705264351109,-804.23,0.00033424,2]
[311609236,1705264351124,-881.95,0.00033424,2]
[311609237,1705264351139,-604.18,0.00033424,2]
[311609238,1705264351154,-523.69,0.00033424,2]
[311609239,1705264351170,-500.0,0.00033424,2]
[311609240,1705264351185,-737.47,0.00033424,2]
[311609241,1705264351200,-500.0,0.00033424,2]
[311609242,1705264351214,-816.74,0.00033424,2]
[311609243,1705264351229,-424.0,0.00033424,2]
[311609244,1705264351246,-1018.42,0.00033424,2]
[311609245,1705264351261,-691.77,0.00033424,2]
[311609246,1705264351275,-500.0,0.00033424,2]
[311609247,1705264351289,-532.86,0.00033424,2]
[311609248,1705264351305,-500.0,0.00033424,2]
[311609249,1705264351321,-500.0,0.00033424,2]
[311609250,1705264351336,-500.0,0.00033424,2]
[311609251,1705264351352,-547.81688808,0.00033424,2]
[311609252,1705264351366,-624.45,0.00033424,2]
[311609253,1705264351380,-592.67,0.00033424,2]
[311609254,1705264351393,-840.8,0.00033424,2]
[311609255,1705264351408,-901.33,0.00033424,2]
[311609256,1705264351423,-500.0,0.00033424,2]
[311609257,1705264351438,-983.46,0.00033424,2]
[311609258,1705264351454,-1035.43,0.00033424,2]
[311609259,1705264351467,-500.0,0.00033424,2]
[311609260,1705264351482,-705.45,0.00033424,2]
[311609261,1705264351497,-511.79,0.00033424,2]
[311609262,1705264351511,-531.03,0.00033424,2]
[311609263,1705264351525,-500.0,0.00033424,2]
[311609264,1705264351539,-500.0,0.00033424,2]
[311609265,1705264351553,-583.5,0.00033424,2]
[311609266,1705264351568,-500.0,0.00033424,2]
[311609267,1705264351583,-652.55,0.00033424,2]
[311609268,1705264351598,-500.0,0.00033424,2]
[311609269,1705264351607,-519.09,0.00033424,2]
[311609270,1705264351616,-500.0,0.00033424,2]
[311609271,1705264351626,-603.94,0.00033424,2]
[311609272,1705264351635,-782.01,0.00033424,2]
[311609273,1705264351644,-919.27,0.00033424,2]
[311609274,1705264351653,-655.09,0.00033424,2]
[311609275,1705264351664,-848.01,0.00033424,2]
[311609276,1705264351673,-500.0,0.00033424,2]
[311609277,1705264351683,-912.72,0.00033424,2]
[311609278,1705264351692,-773.77,0.00033424,2]
[311609279,1705264351702,-932.74,0.00033424,2]
[311609280,1705264351711,-672.78,0.00033424,2]
[311609281,1705264351720,-599.72543805,0.00033424,2]
[311609282,1705264351729,-675.44,0.00033424,2]
[311609283,1705264351739,-512.56,0.00033424,2]
[311609284,1705264351749,-592.65,0.00033424,2]
[311609285,1705264351760,-812.07,0.00033424,2]
[311609286,1705264351769,-500.0,0.00033424,2]
[311609287,1705264351779,-623.53,0.00033424,2]
[311609288,1705264351788,-500.0,0.00033424,2]
[311609289,1705264351798,-584.39,0.00033424,2]
[311609290,1705264351807,-652.39,0.00033424,2]
[311609291,1705264351816,-901.97,0.00033424,2]
[311609292,1705264351825,-500.0,0.00033424,2]
[311609293,1705264351834,-500.0,0.00033424,2]
[311609294,1705264351843,-1030.54,0.00033424,2]
[311609295,1705264351853,-1156.11,0.00033424,3]
[311609296,1705264351863,-1012.56,0.00033424,2]
[311609297,1705264351872,-763.69,0.00033424,2]
[311609298,1705264351881,-602.82,0.00033424,2]
[311609299,1705264351890,-500.0,0.00033424,2]
[311609300,1705264351899,-500.0,0.00033424,2]
[311609301,1705264351909,-525.95,0.00033424,2]
[311609302,1705264351919,-397.94328466,0.00033424,2]
[311609303,1705264351928,-500.0,0.00033424,2]
[311609304,1705264351937,-500.0,0.00033424,2]
[311609305,1705264351946,-507.67,0.00033424,2]
[311609306,1705264351955,-636.62,0.00033424,2]
[311609307,1705264351965,-513.81,0.00033424,2]
[311609308,1705264351974,-902.91,0.00033424,2]
[311609309,1705264351983,-767.34,0.00033424,2]
[311609310,1705264351993,-1333.47,0.00033424,2]
[311609311,1705264352002,-500.0,0.00033424,2]
[311609312,1705264352012,-803.03,0.00033424,2]
[311609313,1705264352021,-500.0,0.00033424,2]
[311609314,1705264352030,-500.0,0.00033424,2]
[311609315,1705264352040,-638.06,0.00033424,2]
[311609316,1705264352049,-536.45,0.00033424,2]
[311609317,1705264352060,-584.6830482,0.00033424,2]
[311609318,1705264352070,-500.0,0.00033424,2]
[311609319,1705264352080,-598.26,0.00033424,2]
[311609320,1705264352089,-661.41,0.00033424,2]
[311609321,1705264352099,-1303.11,0.00033424,2]
[311609322,1705264352108,-776.96,0.00033424,2]
[311609323,1705264352117,-500.0,0.00033424,2]
[311609324,1705264352127,-500.0,0.00033424,2]
[311609325,1705264352137,-619.53,0.00033424,2]
[311609326,1705264352146,-583.54,0.00033424,2]
[311609327,1705264352156,-1031.14,0.00033424,2]
[311609328,1705264352166,-668.9,0.00033424,2]
[311609329,1705264352178,-1069.22,0.00033424,2]
[311609330,1705264352188,-500.0,0.00033424,2]
[311609331,1705264352199,-500.0,0.00033424,2]
[311609332,1705264352209,-522.71,0.00033424,2]
[311609333,1705264352218,-500.0,0.00033424,2]
[311609334,1705264352229,-500.0,0.00033424,2]
[311609335,1705264352240,-500.0,0.00033424,2]
[311609336,1705264352250,-524.27,0.00033424,2]
[311609337,1705264352261,-1298.17,0.00033424,2]
[311609338,1705264352272,-500.0,0.00033424,2]
[311609339,1705264352282,-705.28,0.00033424,2]
[311609340,1705264352291,-623.93,0.00033424,2]
[311609341,1705264352301,-553.43,0.00033424,2]
[311609342,1705264352311,-500.0,0.00033424,2]
[311609343,1705264352322,-841.22,0.00033424,2]
[311609344,1705264352331,-779.76,0.00033424,2]
[311609345,1705264352342,-594.72,0.00033424,2]
[311609346,1705264352355,-754.6,0.00033424,2]
[311609347,1705264352364,-971.46,0.00033424,2]
[311609348,1705264352374,-663.62,0.00033424,2]
[311609349,1705264352383,-500.0,0.00033424,2]
[311609350,1705264352393,-500.0,0.00033424,2]
[311609351,1705264352402,-500.0,0.00033424,2]
[311609352,1705264352411,-500.0,0.00033424,2]
[311609353,1705264352422,-640.22,0.00033424,2]
[311609354,1705264352431,-880.9,0.00033424,2]
[311609355,1705264352440,-500.0,0.00033424,2]
[311609356,1705264352450,-668.12,0.00033424,2]
[311609357,1705264352460,-1002.82,0.00033424,2]
[311609358,1705264352470,-604.35,0.00033424,2]
[311609359,1705264352479,-690.19,0.00033424,2]
[311609360,1705264352489,-500.0,0.00033424,2]
[311609361,1705264352498,-688.38,0.00033424,2]
[311609362,1705264352508,-619.28,0.00033424,2]
[311609363,1705264352517,-529.02,0.00033424,2]
[311609364,1705264352527,-779.6,0.00033424,2]
[311609365,1705264352536,-500.0,0.00033424,2]
[311609366,1705264352546,-1160.15,0.00033424,2]
[311609367,1705264352555,-1042.53,0.00033424,2]
[311609368,1705264352564,-500.0,0.00033424,2]
[311609369,1705264352573,-500.0,0.00033424,2]
[311609370,1705264352583,-500.0,0.00033424,2]
[311609371,1705264352593,-790.69,0.00033424,2]
[311609372,1705264352603,-684.1,0.00033424,2]
[311609373,1705264352612,-647.62,0.00033424,2]
[311609374,1705264352621,-500.0,0.00033424,2]
[311609375,1705264352632,-500.0,0.00033424,2]
[311609376,1705264352642,-500.0,0.00033424,2]
[311609377,1705264352653,-3167.32,0.00033424,2]
[311609378,1705264352663,-571.94,0.00033424,2]
[311609379,1705264352672,-567.97,0.00033424,2]
[311609380,1705264352681,-522.59,0.00033424,2]
[311609381,1705264352691,-500.0,0.00033424,2]
[311609382,1705264352701,-500.0,0.00033424,2]
[311609383,1705264352710,-774.9,0.00033424,2]
[311609384,1705264352719,-500.0,0.00033424,2]
[311609385,1705264352728,-500.0,0.00033424,2]
[311609386,1705264352738,-1088.65,0.00033424,2]
[311609387,1705264352747,-884.91,0.00033424,2]
[311609388,1705264352757,-537.49,0.00033424,2]
[311609389,1705264352766,-1154.9,0.00033424,2]
[311609390,1705264352776,-535.3373499,0.00033424,2]
[311609391,1705264352786,-500.0,0.00033424,2]
[311609392,1705264352796,-766.25,0.00033424,2]
[311609393,1705264352805,-500.0,0.00033424,2]
[311609394,1705264352814,-500.0,0.00033424,2]
[311609395,1705264352824,-500.0,0.00033424,2]
[311609396,1705264352833,-739.11,0.00033424,2]
[311609397,1705264353877,-500.0,0.00033424,2]
[311609398,1705264353895,-2842.79,0.00033424,2]
[311609399,1705264353910,-703.48,0.00033424,2]
[311609400,1705264353927,-500.0,0.00033424,2]
[311609401,1705264353942,-500.0,0.00033424,2]
[311609402,1705264353957,-755.21,0.00033424,2]
[311609403,1705264353969,-655.3,0.00033424,2]
[311609404,1705264353978,-500.0,0.00033424,2]
[311609405,1705264353987,-500.0,0.00033424,2]
[311609406,1705264353996,-500.0,0.00033424,2]
[311609407,1705264354005,-1021.39,0.00033424,2]
[311609408,1705264354014,-649.3,0.00033424,2]
[311609409,1705264354023,-500.0,0.00033424,2]
[311609410,1705264354033,-1175.51,0.00033424,2]
[311609411,1705264354043,-500.0,0.00033424,2]
[311609412,1705264354052,-701.34,0.00033424,2]
[311609413,1705264354061,-1477.05,0.00033424,2]
[311609414,1705264354070,-686.32,0.00033424,2]
[311609415,1705264354080,-956.76,0.00033424,2]
[311609416,1705264354089,-500.0,0.00033424,2]
[311609417,1705264354098,-500.0,0.00033424,2]
[311609418,1705264354107,-601.17,0.00033424,2]
[311609419,1705264354117,-1476.27,0.00033424,2]
[311609420,1705264354126,-500.0,0.00033424,2]
[311609421,1705264354136,-1151.69,0.00033424,2]
[311609422,1705264354147,-1030.11,0.00033424,2]
[311609423,1705264354157,-815.37,0.00033424,2]
[311609424,1705264354167,-457.26991286,0.00033424,2]
[311609425,1705264354177,-1060.69,0.00033424,2]
[311609426,1705264354190,-500.0,0.00033424,2]
[311609427,1705264354200,-500.0,0.00033424,2]
[311609428,1705264354211,-663.4,0.00033424,2]
[311609429,1705264354221,-500.0,0.00033424,2]
[311609430,1705264354233,-1567.33,0.00033424,2]
[311609431,1705264354242,-507.53,0.00033424,2]
[311609432,1705264354253,-690.39,0.00033424,2]
[311609433,1705264354264,-780.22,0.00033424,2]
[311609434,1705264354275,-1087.14,0.00033424,2]
[311609435,1705264354284,-1031.89,0.00033424,2]
[311609436,1705264354298,-15692.02,0.00033424,2]
[311609437,1705264354309,-720.95,0.00033424,2]
[311609438,1705264354319,-968.33,0.00033424,2]
[311609439,1705264354329,-589.85516632,0.00033424,2]
[311609440,1705264354340,-4778.91,0.00033424,2]
[311609441,1705264354350,-4080.55,0.00033424,2]
[311609442,1705264354359,-500.0,0.00033424,2]
[311609443,1705264354369,-524.66,0.00033424,2]
[311609444,1705264354379,-1610.45,0.00033424,2]
[311609445,1705264354388,-1037.02,0.00033424,2]
[311609446,1705264354398,-500.0,0.00033424,2]
[311609447,1705264354407,-500.0,0.00033424,2]
[311609448,1705264354416,-753.69,0.00033424,2]
[311609449,1705264354425,-512.48,0.00033424,2]
[311609450,1705264354434,-819.18,0.00033424,2]
[311609451,1705264354446,-658.91,0.00033424,2]
[311609452,1705264354455,-500.0,0.00033424,2]
[311609453,1705264354465,-922.23,0.00033424,2]
[311609454,1705264354474,-1259.43,0.00033424,2]
[311609455,1705264354484,-908.29,0.00033424,2]
[311609456,1705264354494,-500.0,0.00033424,2]
[311609457,1705264354503,-500.0,0.00033424,2]
[311609458,1705264354512,-500.0,0.00033424,2]
[311609459,1705264354522,-1934.5,0.00033424,2]
[311609460,1705264354533,-1783.71,0.00033424,2]
[311609461,1705264354543,-1552.56,0.00033424,2]
[311609462,1705264354554,-813.78,0.00033424,2]
[311609463,1705264354563,-508.7,0.00033424,2]
[311609464,1705264354573,-1672.88,0.00033424,2]
[311609465,1705264354582,-887.69,0.00033424,2]
[311609466,1705264354592,-1249.33,0.00033424,2]
[311609467,1705264354601,-1426.72,0.00033424,2]
[311609468,1705264354612,-1118.87,0.00033424,2]
[311609469,1705264354622,-5627.11,0.00033424,2]
[311609470,1705264354633,-1369.47,0.00033424,2]
[311609471,1705264354643,-575.47,0.00033424,2]
[311609472,1705264354654,-570.84,0.00033424,2]
[311609473,1705264354663,-567.98,0.00033424,2]
[311609474,1705264354673,-552.23,0.00033424,2]
[311609475,1705264354683,-599.67,0.00033424,2]
[311609476,1705264354693,-682.29,0.00033424,2]
[311609477,1705264354703,-799.56,0.00033424,2]
[311609478,1705264354714,-2554.34,0.00033424,2]
[311609479,1705264354726,-1153.92,0.00033424,2]
[311609480,1705264354736,-1798.17,0.00033424,2]
[311609481,1705264354747,-2674.9,0.00033424,2]
[311609482,1705264354757,-4747.99,0.00033424,2]
[311609483,1705264354766,-874.04,0.00033424,2]
[311609484,1705264354776,-3082.22,0.00033424,2]
[311609485,1705264354785,-522.44,0.00033424,2]
[311609486,1705264354794,-435.95803314,0.00033424,2]
[311609487,1705264354803,-2400.47,0.00033424,2]
[311609488,1705264354812,-1501.1,0.00033424,2]
[311609489,1705264354821,-953.45,0.00033424,2]
[311609490,1705264354831,-1591.7,0.00033424,2]
[311609491,1705264354840,-1195.23,0.00033424,2]
[311609492,1705264354850,-500.0,0.00033424,2]
[311609493,1705264354860,-500.0,0.00033424,2]
[311609494,1705264354870,-830.52,0.00033424,2]
[311609495,1705264354879,-645.86,0.00033424,2]
[311609496,1705264354888,-500.0,0.00033424,2]
[311609497,1705264354898,-500.0,0.00033424,2]
[311609498,1705264354907,-1563.61,0.00033424,2]
[311609499,1705264354916,-552.65,0.00033424,2]
[311609500,1705264354928,-1788.89,0.00033424,2]
[311609501,1705264354938,-3852.95,0.00033424,2]
[311609502,1705264354947,-800.79,0.00033424,2]
[311609503,1705264354956,-3780.57,0.00033424,2]
[311609504,1705264354966,-689.0,0.00033424,2]
[311609505,1705264354975,-1026.83,0.00033424,2]
[311609506,1705264354984,-1077.68,0.00033424,2]
[311609507,1705264354994,-543.18,0.00033424,2]
[311609508,1705264355003,-500.0,0.00033424,2]
[311609509,1705264355012,-3887.42,0.00033424,2]
[311609510,1705264355022,-8222.74,0.00033424,2]
[311609511,1705264355032,-706.36,0.00033424,2]
[311609512,1705264355041,-1212.77,0.00033424,2]
[311609513,1705264355050,-1605.08,0.00033424,2]
[311609514,1705264355060,-500.0,0.00033424,2]
[311609515,1705264355069,-3010.13,0.00033424,2]
[311609516,1705264355079,-500.0,0.00033424,2]
[311609517,1705264355089,-967.6,0.00033424,2]
[311609518,1705264355099,-3703.12,0.00033424,2]
[311609519,1705264355108,-379.68,0.00033424,2]
[311609520,1705264355118,-583.22,0.00033424,2]
[311609521,1705264355128,-30649.83,0.00033424,2]
[311609522,1705264355138,-3434.07,0.00033424,2]